bitfinex-derivatives/quotes_ETHF0:USTF0_20260120
["timestamp","ask_amount","ask_price","bid_price","bid_amount"]
[1768903206268,3.037339,3095.1,3093.4,2.16237705]
[1768903206269,1.388049,3094.8,3093.4,2.16237705]
[1768903206473,1.811,3095.1,3093.1,1.226339]
[1768903206474,1.226339,3094.5,3093.1,1.226339]
[1768903206976,3.30814693,3094.5,3093.1,1.226339]
[1768903207382,3.30814693,3094.5,3093.1,1.22976443]
[1768903207579,2.08180793,3094.5,3093.1,1.22976443]
[1768903207881,1.811,3095.1,3093.1,0.00342543]
[1768903207882,2.08180793,3094.3,3093.1,0.00342543]
[1768903208082,2.08460264,3094.3,3093.1,0.00342543]
[1768903209282,2.08180793,3094.0,3093.1,0.00342543]
[1768903209982,2.50698844,3094.0,3093.1,0.00342543]
[1768903210374,3.30814693,3093.8,3092.4,1.226339]
[1768903210775,2.08180793,3093.8,3092.4,1.226339]
[1768903211479,2.08180793,3093.8,3092.4,1.22951656]
[1768903212374,0.16176,3093.9,3093.0,1.226339]
[1768903212673,0.16176,3093.9,3092.5,2.16237705]
[1768903212877,0.16176,3093.9,3092.6,1.226339]
[1768903213286,0.16176,3093.8,3092.5,2.16237705]
[1768903213584,0.16176,3093.8,3092.4,0.00317756]
[1768903213585,2.08180793,3093.7,3092.4,0.00317756]
[1768903214891,2.24357793,3093.7,3092.4,0.00317756]
[1768903217893,3.30814693,3093.5,3092.4,0.00317756]
[1768903218186,2.08180793,3093.5,3092.4,0.00317756]
[1768903219078,0.2616694,3094.0,3092.9,1.226339]
[1768903219079,2.08180793,3093.9,3092.9,1.226339]
[1768903219793,0.16174,3094.2,3093.2,1.226339]
[1768903220493,0.00279471,3094.3,3093.2,1.226339]
[1768903221595,0.00279471,3094.3,3093.0,2.16237705]
[1768903222093,0.00279471,3094.3,3092.8,1.226339]
[1768903222494,0.00279471,3094.3,3092.6,2.32419705]
[1768903222495,1.226339,3094.1,3092.6,2.16237705]
[1768903222686,3.30814693,3094.1,3092.6,2.16237705]
[1768903223189,0.00279471,3094.3,3092.4,1.22951656]
[1768903223190,1.226339,3093.8,3092.4,0.00317756]
[1768903223389,3.23354213,3093.8,3092.4,0.00317756]
[1768903224692,0.16176,3093.9,3092.5,1.226339]
[1768903224896,0.16176,3093.9,3092.8,1.226339]
[1768903225594,0.16176,3093.9,3092.4,1.86211715]
[1768903225595,0.16176,3093.9,3092.5,1.226339]
[1768903225791,1.388099,3093.9,3092.5,1.226339]
[1768903226987,2.16896313,3093.9,3092.4,1.86211715]
[1768903228086,2.16896313,3093.9,3092.4,0.00317756]
[1768903228597,2.00720313,3093.7,3092.4,0.00317756]
[1768903235888,2.00720313,3094.2,3092.6,1.85893959]
[1768903236088,0.83577619,3094.1,3092.6,1.85893959]
[1768903236293,0.00279471,3094.3,3092.9,1.22806702]
[1768903236599,0.83612744,3094.2,3092.6,1.85893959]
[1768903236793,0.83612744,3094.1,3092.6,1.85893959]
[1768903236997,2.17173784,3094.3,3092.6,1.85893959]
[1768903237199,2.84330588,3094.2,3092.6,1.85893959]
[1768903237395,0.83610275,3094.1,3092.6,1.85893959]
[1768903237698,2.00720313,3094.0,3092.4,0.00317756]
[1768903238300,0.83532504,3093.9,3092.4,0.00317756]
[1768903238502,2.00720313,3094.0,3092.4,0.00317756]
[1768903238705,0.83534221,3093.9,3092.4,0.00317756]
[1768903238900,2.00720313,3094.0,3092.4,0.00317756]
[1768903239105,0.83533787,3093.9,3092.4,0.00317756]
[1768903239299,2.00720313,3094.0,3092.4,0.00317756]
[1768903239500,0.83547094,3093.9,3092.4,0.00317756]
[1768903239699,2.00720313,3094.0,3092.4,0.00317756]
[1768903239900,0.83547144,3093.9,3092.4,0.00317756]
[1768903240097,2.00720313,3094.0,3092.4,0.00317756]
[1768903240401,0.83547134,3093.9,3092.4,0.00317756]
[1768903240597,2.00720313,3094.0,3092.4,0.00317756]
[1768903240802,0.83545108,3093.9,3092.4,2.02394715]
[1768903240999,2.00720313,3094.0,3092.4,2.02394715]
[1768903241704,0.16175,3094.1,3092.4,2.02394715]
[1768903242000,0.8354619,3094.0,3092.4,2.02394715]
[1768903242206,0.16175,3094.1,3092.4,2.02394715]
[1768903242397,0.00279471,3094.3,3092.6,2.02075959]
[1768903242595,0.83546811,3094.2,3092.8,1.85893959]
[1768903242796,0.00279471,3094.3,3092.8,2.02074959]
[1768903243806,0.00279471,3094.3,3093.0,1.78871396]
[1768903245407,0.00279471,3094.3,3093.0,1.95051396]
[1768903245704,3.62054654,3095.3,3093.5,1.78871396]
[1768903245911,5.2042077,3095.7,3093.7,1.78871396]
[1768903246103,1.14470427,3095.6,3093.7,1.78871396]
[1768903246408,1.88887429,3095.7,3093.7,1.78871396]
[1768903246409,0.83510125,3095.5,3093.7,1.78871396]
[1768903246610,0.16166,3095.8,3093.7,1.95048396]
[1768903246611,1.88887429,3095.6,3093.7,1.95048396]
[1768903246914,0.83428229,3095.5,3093.7,1.95048396]
[1768903247210,1.89116332,3095.6,3093.7,1.95048396]
[1768903250812,1.88887429,3095.4,3093.7,1.95048396]
[1768903251214,2.05055429,3095.4,3093.7,1.78871396]
[1768903251614,2.05055429,3095.4,3093.3,1.78871396]
[1768903252715,1.88887429,3095.2,3093.3,1.78871396]
[1768903252908,1.88887429,3095.2,3093.2,0.16179]
[1768903253612,0.1617,3095.1,3093.2,0.16179]
[1768903253914,1.82723732,3095.0,3093.2,0.16179]
[1768903256313,1.98893732,3095.0,3093.2,0.16179]
[1768903256704,1.82723732,3094.8,3093.2,0.16179]
[1768903257508,1.82723732,3094.8,3092.9,1.78871396]
[1768903257708,1.82723732,3094.6,3092.9,1.78871396]
[1768903257917,1.82723732,3094.6,3092.6,0.16182]
[1768903258513,3.235,3094.8,3092.6,0.16182]
[1768903258514,1.82723732,3094.4,3092.6,0.16182]
[1768903260519,1.82723732,3094.2,3092.6,0.16182]
[1768903262318,1.82723732,3094.2,3092.5,1.84372867]
[1768903262618,1.82723732,3094.0,3092.4,0.00317756]
[1768903266117,1.82723732,3094.4,3092.6,1.84372867]
[1768903266320,0.16171,3094.8,3092.8,1.84372867]
[1768903266321,1.98894732,3094.8,3092.8,1.84372867]
[1768903266622,1.98894732,3094.8,3093.0,1.84372867]
[1768903267619,1.98894732,3094.8,3093.1,1.84372867]
[1768903270324,1.98894732,3094.8,3093.1,4.16275021]
[1768903271523,1.98894732,3094.8,3093.1,2.31902154]
[1768903271716,1.82723732,3094.4,3092.8,2.31902154]
[1768903271915,1.98896732,3094.4,3092.7,2.31902154]
[1768903272918,1.98896732,3094.4,3092.7,4.16275021]
[1768903273926,1.98896732,3094.4,3092.7,2.31902154]
[1768903274127,1.98896732,3094.4,3092.6,2.31902154]
[1768903275023,0.16174,3094.3,3092.6,2.31902154]
[1768903275222,1.82723732,3094.2,3092.6,2.31902154]
[1768903275429,1.82723732,3094.2,3092.5,2.48085154]
[1768903275929,1.98897732,3094.2,3092.5,2.31902154]
[1768903276229,1.98898732,3094.0,3092.4,0.00317756]
[1768903281831,1.98898732,3094.0,3092.4,1.84690623]
[1768903282628,1.82723732,3094.5,3092.7,3.07181013]
[1768903282819,0.82635818,3094.4,3092.7,1.84372867]
[1768903283025,0.82635818,3094.3,3092.7,1.84372867]
[1768903283225,1.82723732,3094.5,3092.7,1.84372867]
[1768903283530,2.53806627,3094.4,3092.7,1.84372867]
[1768903283729,0.82644957,3094.3,3092.7,1.84372867]
[1768903287636,2.53806627,3094.3,3092.7,1.84372867]
[1768903287936,0.82644957,3094.2,3092.7,1.84372867]
[1768903288938,0.82644957,3094.2,3092.9,1.22768348]
[1768903289440,1.7116167,3094.3,3092.9,1.22768348]
[1768903290134,1.7116167,3094.8,3093.5,1.22768348]
[1768903290329,1.7116167,3094.8,3093.8,1.22768348]
[1768903290534,1.7116167,3094.8,3093.5,1.22768348]
[1768903290939,1.7116167,3094.8,3093.4,1.73157896]
[1768903295046,0.1617,3095.0,3093.4,1.73157896]
[1768903295251,0.1617,3095.0,3093.4,1.89335896]
[1768903296252,0.1617,3095.0,3093.6,1.73157896]
[1768903297046,1.7116167,3095.2,3093.6,1.73157896]
[1768903297553,1.7116167,3095.2,3093.6,1.89334896]
[1768903297857,1.7116167,3095.2,3093.7,1.73157896]
[1768903299559,1.7116167,3095.2,3093.5,2.31902154]
[1768903299560,1.8733067,3095.2,3093.5,2.31902154]
[1768903301159,1.8733067,3095.2,3093.4,2.31902154]
[1768903302857,1.8733067,3095.2,3093.4,4.0506005]
[1768903303863,1.8733067,3095.2,3093.5,1.7539608]
[1768903305864,1.76332586,3095.0,3093.4,0.16178]
[1768903307365,1.76332586,3095.0,3093.4,4.23476234]
[1768903307766,1.76332586,3095.0,3093.5,1.7539608]
[1768903308463,1.76332586,3095.4,3093.5,4.23476234]
[1768903308657,1.76332586,3095.4,3093.6,1.7539608]
[1768903309263,1.76332586,3095.4,3093.6,1.9157308]
[1768903310756,1.76332586,3095.4,3093.6,4.23475234]
[1768903310958,1.76332586,3095.4,3094.0,1.22684946]
[1768903311362,1.92500586,3095.4,3094.0,1.22684946]
[1768903311764,1.76332586,3095.2,3093.7,1.22684946]
[1768903311957,1.76332586,3095.2,3093.6,1.9157308]
[1768903311958,1.22684946,3094.8,3093.5,2.31902154]
[1768903312164,2.99017532,3094.8,3093.4,3.545871]
[1768903312463,1.76332586,3094.8,3093.5,2.31902154]
[1768903312665,1.76332586,3094.8,3093.4,3.545871]
[1768903312854,1.76332586,3094.8,3093.4,2.31902154]
[1768903313366,1.76332586,3094.8,3093.5,2.31902154]
[1768903315971,1.76332586,3094.8,3093.3,2.31902154]
[1768903316270,1.92503586,3094.8,3093.3,2.31902154]
[1768903316463,1.92503586,3094.8,3093.2,2.31902154]
[1768903316873,1.61369437,3094.6,3093.2,2.31902154]
[1768903318370,1.61369437,3094.6,3093.3,2.31902154]
[1768903319274,1.61369437,3094.6,3093.2,2.31902154]
[1768903319573,1.61369437,3094.6,3093.3,2.31902154]
[1768903320073,1.61369437,3094.6,3093.2,2.31902154]
[1768903320574,1.73167225,3095.1,3093.3,1.75190991]
[1768903320575,1.61369437,3095.0,3093.3,1.75190991]
[1768903320877,2.74636865,3094.9,3093.4,2.31902154]
[1768903321172,1.61369437,3094.7,3093.3,2.31902154]
[1768903321571,1.61369437,3094.5,3093.2,2.31902154]
[1768903321873,1.61369437,3094.3,3093.0,2.31902154]
[1768903322175,1.77543437,3094.3,3093.0,2.31902154]
[1768903322376,1.61369437,3094.1,3092.9,2.31902154]
[1768903322566,1.61369437,3094.1,3092.8,2.31902154]
[1768903323668,1.77544437,3094.1,3092.7,2.31902154]
[1768903325076,1.77546437,3093.8,3092.4,0.00317756]
[1768903325471,1.61369437,3093.6,3092.4,0.00317756]
[1768903325669,1.77546437,3093.6,3092.4,0.00317756]
[1768903326764,1.61369437,3093.3,3092.4,0.00317756]
[1768903326969,1.7781421,3093.3,3091.7,1.75190991]
[1768903328076,1.7781421,3093.3,3091.7,1.75484134]
[1768903329678,1.7781421,3093.3,3091.7,0.00293143]
[1768903330379,1.7781421,3093.3,3091.7,1.75484134]
[1768903330578,0.16444773,3093.3,3091.7,1.75484134]
[1768903331170,1.7781421,3093.3,3091.7,1.75484134]
[1768903336886,3.00678212,3093.3,3091.8,1.22864002]
[1768903339288,3.00678212,3093.3,3091.8,2.98054993]
[1768903339473,0.16444773,3093.3,3092.1,1.22864002]
[1768903339678,1.61369437,3094.2,3092.7,1.22864002]
[1768903339874,1.61369437,3093.9,3092.4,1.22864002]
[1768903340089,1.22864002,3093.4,3092.2,1.75190991]
[1768903340590,2.84233439,3093.7,3092.2,1.75190991]
[1768903340886,2.84570131,3093.7,3092.2,1.75190991]
[1768903343386,2.84570131,3093.7,3092.4,1.22864002]
[1768903343987,2.84570131,3093.7,3092.2,1.75190991]
[1768903344187,2.84570131,3093.7,3092.3,1.22864002]
[1768903345180,2.84570131,3093.7,3092.2,1.75190991]
[1768903345381,2.84570131,3093.7,3092.3,1.22864002]
[1768903346981,2.88545255,3093.3,3091.8,1.69712808]
[1768903348193,1.65681253,3093.2,3091.8,2.9257681]
[1768903348683,1.65681253,3093.2,3092.1,1.22864002]
[1768903349480,0.16178,3093.5,3092.4,1.22864002]
[1768903350197,0.16178,3093.5,3092.1,1.69712808]
[1768903350391,0.16178,3093.5,3092.3,1.22864002]
[1768903351096,0.16178,3093.5,3092.1,1.69712808]
[1768903353295,0.82948946,3093.4,3092.1,1.69712808]
[1768903353498,1.81859253,3093.5,3092.1,1.69712808]
[1768903353790,0.82966418,3093.4,3092.1,1.69712808]
[1768903353997,0.82966418,3093.4,3091.8,1.39003495]
[1768903353998,1.65681253,3093.3,3091.9,2.31902154]
[1768903356485,1.65681253,3093.0,3091.7,0.00293143]
[1768903356994,2.48656177,3092.9,3091.7,0.00293143]
[1768903357296,1.65681253,3092.9,3091.7,0.00293143]
[1768903358704,1.91844382,3092.9,3091.7,0.00293143]
[1768903360790,1.65681253,3092.9,3091.7,0.00293143]
[1768903365198,0.1618,3093.1,3091.7,1.63461604]
[1768903365501,0.83986836,3093.0,3091.7,1.63461604]
[1768903365694,0.1618,3093.1,3091.7,1.63461604]
[1768903365892,0.83980201,3093.0,3091.7,1.63461604]
[1768903366093,0.1618,3093.1,3091.7,1.63461604]
[1768903366294,0.83976833,3093.0,3091.7,1.63461604]
[1768903366494,0.1618,3093.1,3091.7,1.63461604]
[1768903366691,0.83970967,3093.0,3091.7,1.63461604]
[1768903366888,0.1618,3093.1,3091.7,1.63461604]
[1768903367091,0.83970971,3093.0,3091.7,1.63461604]
[1768903367298,0.1618,3093.1,3091.7,1.63461604]
[1768903367499,0.83965258,3093.0,3091.7,1.63461604]
[1768903367695,0.1618,3093.1,3091.7,1.63461604]
[1768903367897,0.83953143,3093.0,3091.7,1.63461604]
[1768903368098,0.1618,3093.1,3091.7,1.63461604]
[1768903368301,0.8395289,3093.0,3091.7,1.63461604]
[1768903368605,1.87903083,3093.1,3091.7,0.00293143]
[1768903368799,1.71723083,3092.9,3091.7,0.00293143]
[1768903373501,0.1618,3093.1,3091.7,1.66203563]
[1768903373703,0.83968304,3093.0,3091.7,1.66203563]
[1768903373906,0.1618,3093.1,3091.7,1.66203563]
[1768903374107,0.83967618,3093.0,3091.7,1.66203563]
[1768903374309,0.1618,3093.1,3091.7,1.66203563]
[1768903375007,1.61947387,3093.4,3091.8,1.22817495]
[1768903375202,0.83991619,3093.3,3091.9,1.6591042]
[1768903375408,0.16177,3093.6,3091.9,1.6591042]
[1768903375608,0.8401449,3093.5,3091.9,1.6591042]
[1768903375800,0.16177,3093.6,3091.9,1.6591042]
[1768903376118,0.84016098,3093.5,3091.9,1.6591042]
[1768903376308,0.16177,3093.6,3091.9,1.6591042]
[1768903376509,0.84000606,3093.5,3091.9,1.6591042]
[1768903376707,0.16177,3093.6,3091.9,1.6591042]
[1768903377006,0.8399936,3093.5,3091.9,1.6591042]
[1768903377208,0.16177,3093.6,3091.9,1.6591042]
[1768903377403,0.83995685,3093.5,3091.9,1.6591042]
[1768903377701,0.16177,3093.6,3091.9,1.6591042]
[1768903377902,0.8399566,3093.5,3091.9,1.6591042]
[1768903378206,0.16177,3093.6,3091.9,1.6591042]
[1768903378396,0.83995877,3093.5,3091.9,1.6591042]
[1768903378599,0.16177,3093.6,3091.9,1.6591042]
[1768903378795,0.83989406,3093.5,3091.9,1.6591042]
[1768903379000,0.16177,3093.6,3091.9,1.6591042]
[1768903379201,0.83989434,3093.5,3091.9,1.6591042]
[1768903379400,0.16177,3093.6,3091.9,1.6591042]
[1768903379605,0.83983518,3093.5,3091.9,1.6591042]
[1768903379906,0.16177,3093.6,3091.9,1.6591042]
[1768903380411,0.83976712,3093.5,3091.9,1.6591042]
[1768903380610,1.61947387,3093.3,3091.8,2.89665852]
[1768903380805,1.61947387,3093.3,3091.7,0.00293143]
[1768903389218,1.61947387,3093.3,3091.7,1.66203563]
[1768903389515,1.61947387,3093.3,3091.8,2.88727915]
[1768903390305,1.61947387,3093.3,3091.9,1.6591042]
[1768903391017,1.62284079,3093.7,3091.9,1.6591042]
[1768903391214,1.14919521,3093.6,3091.9,1.8209642]
[1768903391417,0.83883882,3093.5,3091.9,1.8209642]
[1768903391720,0.00336692,3093.7,3092.3,1.8209442]
[1768903395017,1.62284079,3093.7,3092.3,1.8209442]
[1768903395214,1.62284079,3093.7,3092.3,0.16184]
[1768903395516,1.62284079,3093.7,3091.9,1.6591042]
[1768903395517,1.62284079,3093.7,3091.9,4.55576272]
[1768903395719,1.62284079,3093.7,3091.9,2.89665852]
[1768903395917,1.61947387,3093.5,3091.9,2.89665852]
[1768903396217,1.61947387,3093.5,3091.7,3.06145995]
[1768903396518,1.61947387,3093.3,3091.7,3.06145995]
[1768903397222,1.61947387,3093.1,3091.7,0.00293143]
[1768903398919,1.61947387,3093.5,3091.7,1.82390563]
[1768903399125,0.83880539,3093.4,3091.9,1.6591042]
[1768903399428,1.61947387,3093.5,3091.9,1.6591042]
[1768903399618,0.83891054,3093.4,3091.9,1.6591042]
[1768903399820,1.61947387,3093.5,3091.9,1.6591042]
[1768903400021,0.83889962,3093.4,3091.9,1.6591042]
[1768903400317,1.61947387,3093.5,3091.9,1.6591042]
[1768903400517,0.83902005,3093.4,3091.9,1.6591042]
[1768903400718,1.61947387,3093.5,3091.9,1.6591042]
[1768903400926,0.83901886,3093.4,3091.9,1.6591042]
[1768903401121,1.61947387,3093.5,3091.9,1.6591042]
[1768903401321,0.83903105,3093.4,3091.9,1.6591042]
[1768903401521,1.61947387,3093.5,3091.9,1.6591042]
[1768903401722,0.83915042,3093.4,3091.9,1.6591042]
[1768903401923,1.61947387,3093.5,3091.9,1.6591042]
[1768903402123,0.83915209,3093.4,3091.9,1.6591042]
[1768903402425,0.83931958,3093.3,3091.9,1.6591042]
[1768903402626,1.61947387,3093.5,3091.9,1.6591042]
[1768903402827,0.83932122,3093.4,3091.9,1.6591042]
[1768903403123,0.83932122,3093.3,3091.9,1.6591042]
[1768903403327,1.61947387,3093.5,3091.9,1.6591042]
[1768903403530,0.83951713,3093.4,3091.9,1.6591042]
[1768903403722,0.83951713,3093.3,3091.9,1.6591042]
[1768903403918,1.61947387,3093.5,3091.9,1.6591042]
[1768903404122,0.83952096,3093.4,3091.9,1.6591042]
[1768903404324,0.83952096,3093.3,3091.9,1.6591042]
[1768903404623,1.61947387,3093.5,3091.9,1.6591042]
[1768903404823,0.83960578,3093.4,3091.9,1.6591042]
[1768903405030,0.83960578,3093.3,3091.9,1.6591042]
[1768903405234,1.61947387,3093.5,3091.9,1.6591042]
[1768903405529,2.43313316,3093.4,3091.9,1.6591042]
[1768903405727,2.43313316,3093.3,3091.9,1.6591042]
[1768903405926,1.59356397,3093.1,3091.7,0.00293143]
[1768903409021,0.16179,3093.2,3091.7,1.53715997]
[1768903409221,1.59356397,3093.5,3091.7,1.53715997]
[1768903409421,1.15003495,3093.4,3091.8,1.53422854]
[1768903409621,1.15003495,3093.4,3091.7,3.06145995]
[1768903409622,1.59356397,3093.5,3092.0,1.53422854]
[1768903409828,0.00336692,3093.7,3092.0,1.69607854]
[1768903410033,0.8395776,3093.6,3092.1,1.53422854]
[1768903410225,0.00336692,3093.7,3092.1,1.53422854]
[1768903410425,0.83952553,3093.6,3092.1,1.53422854]
[1768903410729,0.00336692,3093.7,3092.1,1.53422854]
[1768903411033,0.83952262,3093.6,3092.1,1.53422854]
[1768903411228,0.00336692,3093.7,3092.1,1.53422854]
[1768903411429,0.83944721,3093.6,3092.1,1.53422854]
[1768903411630,0.00336692,3093.7,3092.1,1.53422854]
[1768903411822,0.83944855,3093.6,3092.1,1.53422854]
[1768903412022,0.00336692,3093.7,3092.1,1.53422854]
[1768903412931,0.00336692,3093.7,3092.5,1.22799956]
[1768903416836,0.00336692,3093.7,3092.8,1.22799956]
[1768903418443,0.00336692,3093.7,3092.8,2.7622281]
[1768903418638,0.16174,3094.3,3093.1,1.22799956]
[1768903418839,0.82581861,3094.2,3093.1,1.22799956]
[1768903419042,1.59356397,3094.5,3093.1,1.22799956]
[1768903419251,0.82589598,3094.4,3093.1,1.22799956]
[1768903419437,0.16171,3094.8,3093.7,1.22799956]
[1768903419744,1.13605237,3094.7,3093.7,1.22799956]
[1768903420048,0.16490557,3094.8,3093.7,1.22799956]
[1768903420049,0.82560043,3094.6,3093.7,1.22799956]
[1768903420248,0.16490557,3094.8,3093.7,1.22799956]
[1768903420434,0.8251725,3094.7,3093.7,1.22799956]
[1768903420638,0.00319557,3094.8,3094.0,1.22799956]
[1768903420838,0.00319557,3094.8,3094.0,0.00244134]
[1768903422737,1.59675954,3094.8,3094.0,0.00244134]
[1768903423852,0.00319557,3094.8,3094.0,0.00244134]
[1768903426856,1.51050396,3094.8,3093.2,0.16179]
[1768903427756,1.51050396,3094.8,3093.2,0.16542813]
[1768903428050,0.00319557,3094.8,3093.2,1.69826742]
[1768903428252,0.00319557,3094.8,3093.4,1.53283929]
[1768903428951,0.00319557,3094.8,3093.4,1.69461929]
[1768903430157,0.00319557,3094.8,3093.6,1.53283929]
[1768903431559,0.16167,3095.6,3093.6,1.69460929]
[1768903431755,0.16167,3095.6,3093.8,1.69459929]
[1768903431956,0.16167,3095.6,3093.9,1.53283929]
[1768903432658,0.16462742,3095.6,3093.9,1.53283929]
[1768903434862,0.16462742,3095.6,3093.9,1.69459929]
[1768903435458,0.16462742,3095.6,3094.1,1.5722984]
[1768903435459,0.00295742,3095.6,3094.1,1.5722984]
[1768903436458,1.50305411,3095.6,3094.1,1.5722984]
[1768903437759,0.00295742,3095.6,3094.1,1.5722984]
[1768903440666,1.50305411,3095.6,3094.1,1.5722984]
[1768903443867,0.00295742,3095.6,3094.1,1.7340384]
[1768903444262,0.00295742,3095.6,3094.3,1.5722984]
[1768903444767,0.00295742,3095.6,3094.3,1.7340284]
[1768903444963,0.00295742,3095.6,3095.0,1.2260513]
[1768903445166,0.16164,3096.2,3095.0,1.2260513]
[1768903446168,0.16415901,3096.2,3095.0,1.2260513]
[1768903446971,0.16415901,3096.2,3094.6,1.5722984]
[1768903450484,1.6642557,3096.2,3094.5,2.48806938]
[1768903450676,1.50009669,3095.7,3094.4,2.32634938]
[1768903450869,1.50009669,3095.7,3094.0,6.38167132]
[1768903451173,1.50009669,3095.5,3093.9,2.32634938]
[1768903451365,1.50009669,3095.5,3093.8,3.89864778]
[1768903452878,1.66176669,3095.5,3093.8,3.89864778]
[1768903453686,1.50009669,3095.3,3093.8,2.32634938]
[1768903453870,1.66178669,3095.1,3093.4,3.89864778]
[1768903454574,1.66178669,3095.1,3093.4,1.5722984]
[1768903457186,1.50009669,3094.9,3093.4,1.5722984]
[1768903457683,1.50009669,3094.9,3093.2,2.32998751]
[1768903458682,1.50009669,3094.9,3093.2,3.90228591]
[1768903458886,0.1617,3095.0,3093.3,1.5722984]
[1768903459685,1.50009669,3095.3,3093.4,1.5722984]
[1768903459879,1.50009669,3095.3,3093.5,1.5722984]
[1768903462395,0.16167,3095.5,3093.7,1.7340584]
[1768903462579,0.16167,3095.5,3093.9,1.5722984]
[1768903464290,1.50009669,3095.8,3094.0,1.49319575]
[1768903464488,1.50009669,3095.8,3094.1,1.49319575]
[1768903465187,1.47594412,3095.6,3094.1,1.49319575]
[1768903465392,1.63761412,3095.6,3093.7,1.49319575]
[1768903465692,1.47594412,3095.4,3093.7,1.49319575]
[1768903466192,1.47594412,3095.4,3093.8,2.32078418]
[1768903466495,1.63762412,3095.4,3093.8,2.32078418]
[1768903466991,1.63762412,3095.4,3093.7,3.81397993]
[1768903467580,1.63762412,3095.4,3093.8,2.32078418]
[1768903467792,1.63762412,3095.4,3093.7,3.81397993]
[1768903468298,1.63762412,3095.4,3093.8,2.32078418]
[1768903472299,1.63762412,3095.4,3093.8,3.81397993]
[1768903475200,1.63762412,3095.4,3093.9,2.32078418]
[1768903476394,1.63764412,3095.0,3093.8,2.32078418]
[1768903476600,1.47594412,3094.8,3093.4,3.81397993]
[1768903478000,1.47594412,3094.8,3093.4,2.32078418]
[1768903478892,1.63765412,3094.8,3093.3,2.32078418]
[1768903480397,1.47594412,3094.6,3093.3,2.32078418]
[1768903480702,1.63766412,3094.6,3093.2,2.32442231]
[1768903481004,1.63767412,3094.4,3093.2,0.00363813]
[1768903481592,1.63768412,3094.2,3093.2,0.00363813]
[1768903489913,0.16174,3094.2,3093.2,0.00363813]
[1768903490407,1.4821205,3094.6,3093.2,0.00363813]
[1768903491198,1.6438405,3094.6,3093.2,0.00363813]
[1768903496218,1.6438405,3094.6,3093.2,1.53816219]
[1768903501508,0.16173,3094.4,3093.2,0.00363813]
[1768903502124,1.57022553,3094.4,3093.2,0.00363813]
[1768903503325,1.40849553,3094.2,3093.2,0.00363813]
[1768903505312,0.16174,3094.3,3093.2,0.00363813]
[1768903505823,0.16171,3094.9,3093.4,1.22732179]
[1768903506119,0.16171,3094.9,3093.5,1.53452406]
[1768903506621,1.40849553,3095.0,3093.5,1.53452406]
[1768903506817,1.40849553,3095.4,3093.8,1.22732179]
[1768903507023,1.12953342,3095.3,3093.5,1.53452406]
[1768903507225,0.81919531,3095.2,3093.5,1.53452406]
[1768903507423,1.40849553,3095.4,3093.5,1.53452406]
[1768903507618,1.12936577,3095.3,3093.5,1.53452406]
[1768903507922,0.81907531,3095.2,3093.5,1.53452406]
[1768903508118,1.40849553,3095.4,3093.5,1.53452406]
[1768903508322,0.82426201,3095.3,3093.6,1.53452406]
[1768903508535,1.40849553,3095.4,3093.6,1.53452406]
[1768903508831,0.82434228,3095.3,3093.6,1.53452406]
[1768903509126,1.40849553,3095.4,3093.6,1.53452406]
[1768903510323,0.16167,3095.5,3093.8,1.53452406]
[1768903510825,0.16167,3095.5,3093.9,1.53452406]
[1768903512731,1.40849553,3095.8,3093.9,1.53452406]
[1768903515231,0.16166,3095.7,3093.9,1.53452406]
[1768903515436,0.16166,3095.7,3093.9,1.69628406]
[1768903515838,0.16166,3095.7,3094.0,1.53452406]
[1768903516034,0.16166,3095.7,3094.0,1.69627406]
[1768903516243,1.40849553,3095.8,3094.2,1.53452406]
[1768903516541,0.00251901,3096.2,3094.4,4.01703824]
[1768903516729,0.00251901,3096.2,3094.5,1.53452406]
[1768903516936,0.00251901,3096.2,3094.6,1.53452406]
[1768903517233,0.00251901,3096.2,3094.2,4.85798023]
[1768903517234,1.40849553,3096.0,3094.2,3.85530824]
[1768903517741,0.16164,3096.1,3094.4,1.53452406]
[1768903518041,0.00251901,3096.2,3094.8,1.53452406]
[1768903523744,1.47019753,3096.0,3094.4,1.42131724]
[1768903523955,1.47019753,3096.0,3094.1,1.58305724]
[1768903524632,1.63184753,3096.0,3094.1,1.58305724]
[1768903528048,1.63184753,3096.0,3094.5,1.0]
[1768903531746,1.63185753,3095.8,3094.5,1.0]
[1768903534052,1.22893128,3096.2,3095.0,1.22641227]
[1768903534053,0.16415901,3096.2,3095.0,1.22641227]
[1768903534253,0.16415901,3096.2,3094.5,1.0]
[1768903534254,0.16415901,3096.2,3094.7,1.42131724]
[1768903538153,0.16415901,3096.2,3094.7,3.74210142]
[1768903539754,0.16415901,3096.2,3094.8,1.42131724]
[1768903540255,0.00251901,3096.2,3094.9,1.42131724]
[1768903541750,0.00251901,3096.2,3095.0,1.42131724]
[1768903542557,0.00251901,3096.2,3094.7,4.80689708]
[1768903542558,1.47019753,3097.1,3095.4,1.42131724]
[1768903542761,0.82351456,3097.0,3095.4,1.42131724]
[1768903543053,1.47019753,3097.1,3095.6,1.42131724]
[1768903543260,0.16159,3097.2,3095.6,1.42131724]
[1768903543459,0.00416182,3097.2,3095.7,1.42439951]
[1768903544253,0.00416182,3097.2,3095.9,1.42439951]
[1768903544454,0.00416182,3097.2,3096.1,1.42439951]
[1768903546664,1.46076745,3097.2,3095.6,1.95878318]
[1768903547058,1.46076745,3097.2,3095.6,3.38318269]
[1768903547259,0.00416182,3097.2,3095.7,1.42439951]
[1768903547466,0.00416182,3097.2,3096.0,1.42439951]
[1768903548658,0.00416182,3097.2,3096.1,1.955]
[1768903549052,0.00416182,3097.2,3096.0,1.42439951]
[1768903549258,0.00416182,3097.2,3096.0,3.37939951]
[1768903549771,0.00416182,3097.2,3096.1,1.42439951]
[1768903550760,1.45660563,3098.1,3096.1,1.58603951]
[1768903551857,1.45943986,3098.1,3096.1,1.58603951]
[1768903553763,1.48637404,3097.9,3096.1,1.58603951]
[1768903553968,1.48637404,3097.7,3096.2,1.954]
[1768903554170,1.48637404,3097.7,3096.1,1.42439951]
[1768903554470,1.48637404,3097.7,3096.1,3.37839951]
[1768903554973,1.48637404,3097.7,3096.1,1.42439951]
[1768903556179,1.64793404,3097.6,3096.1,1.42439951]
[1768903560874,1.64793404,3097.6,3096.2,1.22511262]
[1768903562867,2.87305666,3097.4,3096.0,1.22511262]
[1768903563071,1.48637404,3097.3,3095.9,1.22511262]
[1768903563465,1.64795404,3097.3,3095.8,1.22511262]
[1768903563770,1.48637404,3097.1,3095.7,1.22511262]
[1768903564275,1.48637404,3097.1,3096.0,1.22511262]
[1768903565577,1.48637404,3097.1,3095.8,1.22511262]
[1768903566377,1.48637404,3097.1,3096.1,1.22511262]
[1768903566572,0.16159,3097.2,3096.1,1.22511262]
[1768903566874,1.48637404,3097.5,3095.7,1.40833333]
[1768903567071,1.48637404,3097.5,3096.3,1.22511262]
[1768903571279,1.48637404,3097.5,3096.6,1.22511262]
[1768903574687,0.16156,3097.6,3096.6,1.22511262]
[1768903576786,0.16156,3097.6,3096.2,2.32078418]
[1768903576985,0.16156,3097.6,3096.5,1.22511262]